Workbook

Sheet паспорт
A1: ПАТ "УКРТРАНСГАЗ" | G1: ПАСПОРТ ФІЗИКО-ХІМІЧНИХ ПОКАЗНИКІВ ПРИРОДНОГО ГАЗУ № 135
A2: Філія "УМГ "КИЇВТРАНСГАЗ" | G2: переданого Диканським ЛВУМГ та прийнятого ПАТ "Харківгаз", ПАТ "Полтавагаз"
A3: Решетилівський п/м Диканське ЛВУМГ | G3: Маршрут № 135
A4: Вимірювальна хіміко-аналітична лабораторія | K4: Газопровід - підвід УКПГ -2
A5: Свідоцтво № 123/15 чинно до 31.12.2018 р. | K5: по газопроводу "ШЕБЕЛИНКА-ДИКАНЬКА-КИЇВ" | V5: за період з | X5: 2017-05-01 | Z5: по | AA5: 2017-05-31
A7: Число місяця | B7: Компонентний склад, % мол. | N7: Фізико-хімічні показники газу обчислені на основі компонентного складу, 101,325 кПа | X7: Температура точки роси за вологою (Р = 3.92 МПа), ºС | Y7: Температура точки роси за вуглеводнями, ºС | Z7: Вміст сірководню, г/м3 | AA7: Вміст меркаптанової сірки, г/м3 | AB7: Вміст механічних домішок, г/м3
N8: Густина абсолютна, кг/м3,при 20 ºС, | O8: Температура вимірювання/згоряння при 20/25°С
B9: метан, С1 | C9: етан, С2 | D9: пропан, С3 | E9: ізо-бутан, і-С4 | F9: н-бутан, н-С4 | G9: нео-пентан, нео-С5 | H9: ізо-пентан, і-С5 | I9: н-пентан, н-С5 | J9: гексани та вищі, С6+ | K9: кисень, О2 | L9: азот, N2 | M9: діоксид вуглецю, CО2 | O9: Теплота згоряння нижча | R9: Теплота згоряння вища | U9: Число Воббе вище
O10: ккал/м3 | P10: МДж/м3 | Q10: кВт⋅год/м3 | R10: ккал/м3 | S10: МДж/м3 | T10: кВт⋅год/м3 | U10: ккал/м3 | V10: МДж/м3 | W10: кВт⋅год/м3
A11: 1 | O11: 8309 | P11: 34.79 | Q11: 9.663888889 | R11: 9205.120986 | S11: 38.54 | T11: 10.70555556 | AC11: =SUM(B11:M11)+$K$42+$N$42 -> 0
A12: 2 | O12: 8309 | P12: 34.79 | Q12: 9.663888889 | R12: 9205.120986 | S12: 38.54 | T12: 10.70555556 | AC12: 0
A13: 3 | O13: 8309 | P13: 34.79 | Q13: 9.663888889 | R13: 9205.120986 | S13: 38.54 | T13: 10.70555556 | AC13: 0 | AD13: =IF(AC13=100,"ОК"," ") -> 
A14: 4 | O14: 8309 | P14: 34.79 | Q14: 9.663888889 | R14: 9205.120986 | S14: 38.54 | T14: 10.70555556 | AC14: 0 | AD14: =IF(AC14=100,"ОК"," ") -> 
A15: 5 | O15: 8309 | P15: 34.79 | Q15: 9.663888889 | R15: 9205.120986 | S15: 38.54 | T15: 10.70555556 | AC15: 0
A16: 6 | O16: 8309 | P16: 34.79 | Q16: 9.663888889 | R16: 9205.120986 | S16: 38.54 | T16: 10.70555556 | AC16: 0
A17: 7 | O17: 8309 | P17: 34.79 | Q17: 9.663888889 | R17: 9205.120986 | S17: 38.54 | T17: 10.70555556 | AC17: 0
A18: 8 | O18: 8309 | P18: 34.79 | Q18: 9.663888889 | R18: 9205.120986 | S18: 38.54 | T18: 10.70555556 | AC18: 0
A19: 9 | O19: 8309 | P19: 34.79 | Q19: 9.663888889 | R19: 9205.120986 | S19: 38.54 | T19: 10.70555556 | AC19: 0
A20: 10 | O20: 8309 | P20: 34.79 | Q20: 9.663888889 | R20: 9205.120986 | S20: 38.54 | T20: 10.70555556 | AC20: 0
A21: 11 | O21: 8309 | P21: 34.79 | Q21: 9.663888889 | R21: 9205.120986 | S21: 38.54 | T21: 10.70555556 | X21: -14.5 | Y21: -10.7 | AC21: 0
A22: 12 | B22: 92.8787 | C22: 3.884 | D22: 0.9191 | E22: 0.1301 | F22: 0.1856 | G22: 0.0045 | H22: 0.0528 | I22: 0.0404 | J22: 0.0541 | K22: 0.0047 | L22: 1.5377 | M22: 0.3083 | N22: 0.7225 | O22: 8293 | P22: 34.72 | Q22: 9.644444444 | R22: 9188 | S22: 38.47 | T22: 10.68611111 | U22: 11863 | V22: 49.67 | W22: 13.79722222 | AC22: 100 | AD22: ОК
A23: 13 | O23: 8293 | P23: 34.72 | Q23: 9.644444444 | R23: 9188 | S23: 38.47 | T23: 10.68611111 | AC23: 0
A24: 14 | O24: 8293 | P24: 34.72 | Q24: 9.644444444 | R24: 9188 | S24: 38.47 | T24: 10.68611111 | AC24: 0
A25: 15 | O25: 8293 | P25: 34.72 | Q25: 9.644444444 | R25: 9188 | S25: 38.47 | T25: 10.68611111 | AC25: 0
A26: 16 | O26: 8293 | P26: 34.72 | Q26: 9.644444444 | R26: 9188 | S26: 38.47 | T26: 10.68611111 | AC26: 0
A27: 17 | O27: 8293 | P27: 34.72 | Q27: 9.644444444 | R27: 9188 | S27: 38.47 | T27: 10.68611111 | X27: -12.7 | Y27: -12.3 | AB27: відсут. | AC27: 0
A28: 18 | B28: 92.8503 | C28: 3.8929 | D28: 0.9198 | E28: 0.1305 | F28: 0.1866 | G28: 0.0055 | H28: 0.0529 | I28: 0.0403 | J28: 0.0516 | K28: 0.0049 | L28: 1.5541 | M28: 0.3105 | N28: 0.7226 | O28: 8293 | P28: 34.72 | Q28: 9.644444444 | R28: 9188 | S28: 38.47 | T28: 10.68611111 | U28: 11861 | V28: 49.66 | W28: 13.79444444 | Z28: <0,006 | AA28: <0,02 | AC28: 99.9999
A29: 19 | O29: 8293 | P29: 34.72 | Q29: 9.644444444 | R29: 9188 | S29: 38.47 | T29: 10.68611111 | AC29: 0
A30: 20 | O30: 8293 | P30: 34.72 | Q30: 9.644444444 | R30: 9188 | S30: 38.47 | T30: 10.68611111 | AC30: 0 | AD30: =IF(AC30=100,"ОК"," ") -> 
A31: 21 | O31: 8293 | P31: 34.72 | Q31: 9.644444444 | R31: 9188 | S31: 38.47 | T31: 10.68611111 | AC31: 0
A32: 22 | O32: 8293 | P32: 34.72 | Q32: 9.644444444 | R32: 9188 | S32: 38.47 | T32: 10.68611111 | AC32: 0
A33: 23 | O33: 8293 | P33: 34.72 | Q33: 9.644444444 | R33: 9188 | S33: 38.47 | T33: 10.68611111 | AC33: 0 | AD33: =IF(AC33=100,"ОК"," ") -> 
A34: 24 | O34: 8293 | P34: 34.72 | Q34: 9.644444444 | R34: 9188 | S34: 38.47 | T34: 10.68611111 | X34: -11.3 | Y34: -8.8 | AC34: 0
A35: 25 | B35: 92.8851 | C35: 3.8745 | D35: 0.9142 | E35: 0.1294 | F35: 0.1844 | G35: 0.0047 | H35: 0.0527 | I35: 0.0399 | J35: 0.0513 | K35: 0.0049 | L35: 1.5505 | M35: 0.3083 | N35: 0.7223 | O35: 8290 | P35: 34.71 | Q35: 9.641666667 | R35: 9186 | S35: 38.46 | T35: 10.68333333 | U35: 11961 | V35: 49.66 | W35: 13.79444444 | AC35: 99.9999
A36: 26 | O36: 8290 | P36: 34.71 | Q36: 9.641666667 | R36: 9186 | S36: 38.46 | T36: 10.68333333 | AC36: 0
A37: 27 | O37: 8290 | P37: 34.71 | Q37: 9.641666667 | R37: 9186 | S37: 38.46 | T37: 10.68333333 | AC37: 0
A38: 28 | O38: 8290 | P38: 34.71 | Q38: 9.641666667 | R38: 9186 | S38: 38.46 | T38: 10.68333333 | AC38: 0
A39: 29 | O39: 8290 | P39: 34.71 | Q39: 9.641666667 | R39: 9186 | S39: 38.46 | T39: 10.68333333 | AC39: 0
A40: 30 | O40: 8290 | P40: 34.71 | Q40: 9.641666667 | R40: 9186 | S40: 38.46 | T40: 10.68333333 | X40: -9.5 | Y40: -8.6 | AC40: 0
A41: 31 | B41: 92.9728 | C41: 3.8289 | D41: 0.9008 | E41: 0.1275 | F41: 0.1819 | G41: 0.0051 | H41: 0.0517 | I41: 0.0397 | J41: 0.0492 | K41: 0.0046 | L41: 1.5306 | M41: 0.3071 | N41: 0.7216 | O41: 8286 | P41: 34.69 | Q41: 9.636111111 | R41: 9181 | S41: 38.44 | T41: 10.67777778 | U41: 11861 | V41: 49.66 | W41: 13.79444444 | AC41: 99.9999
A42: Рівень одоризації відповідає чинним нормативним документам | O42: =SUMPRODUCT(O11:O41,' розрахунок'!E7:E37)/' розрахунок'!E38 -> 8297.163258 | P42: =SUMPRODUCT(P11:P41,' розрахунок'!E7:E37)/' розрахунок'!E38 -> 34.73855698 | Q42: =SUMPRODUCT(Q11:Q41,' розрахунок'!E7:E37)/' розрахунок'!E38 -> 9.64959916 | R42: =SUMPRODUCT(R11:R41,' розрахунок'!E7:E37)/' розрахунок'!E38 -> 9192.591447 | S42: =SUMPRODUCT(S11:S41,' розрахунок'!E7:E37)/' розрахунок'!E38 -> 38.48855698 | T42: =SUMPRODUCT(T11:T41,' розрахунок'!E7:E37)/' розрахунок'!E38 -> 10.69126583
H43: Середньозважене значення теплоти згоряння:
B46: Заступник начальника управління Диканського ЛВУМГ | O46: Герасименко І.М. | V46: 01.06.17р.
C47: Підрозділу підприємства, якому підпорядкована лабораторія | O47: прізвище | R47: підпис | V47: дата
B48: Завідувач лабораторією | O48: Славінська А.В. | V48: =V46 -> 01.06.17р.
C49: Лабораторія, де здійснювалось вимірювання газу | O49: прізвище | R49: підпис | V49: дата
B50: Начальник служби ГВ та М | O50: Левадний С.А. | V50: =V46 -> 01.06.17р.
C51: Підрозділу, відповідального за облік газу за маршрутом | O51: прізвище | R51: підпис | V51: дата

Sheet розрахунок
A2: Додаток до Паспорту фізико-хімічних показників природного газу по маршруту № 135
A4: Число місяця | B4: Теплота згоряння вища, МДж/м3 | C4: Харківська область | D4: Полтавська область | E4: Загальний обсяг газу, м3
C5: Обсяг газу переданого за добу, м3
C6: ГРС М-Комишувата | D6: ГРС Гряково
A7: 1 | B7: =паспорт!S11 -> 38.54 | C7: 265.57 | D7: 487.97 | E7: =SUM(C7:D7) -> 753.54
A8: 2 | B8: =паспорт!S12 -> 38.54 | C8: 216.46 | D8: 488.17 | E8: 704.63
A9: 3 | B9: =паспорт!S13 -> 38.54 | C9: 208.92 | D9: 406.06 | E9: 614.98
A10: 4 | B10: =паспорт!S14 -> 38.54 | C10: 248.82 | D10: 430.32 | E10: 679.14
A11: 5 | B11: =паспорт!S15 -> 38.54 | C11: 254.92 | D11: 440.03 | E11: 694.95
A12: 6 | B12: =паспорт!S16 -> 38.54 | C12: 247.4 | D12: 468.26 | E12: 715.66
A13: 7 | B13: =паспорт!S17 -> 38.54 | C13: 235.42 | D13: 468.17 | E13: 703.59
A14: 8 | B14: =паспорт!S18 -> 38.54 | C14: 274.94 | D14: 467.88 | E14: 742.82
A15: 9 | B15: =паспорт!S19 -> 38.54 | C15: 261.71 | D15: 539.36 | E15: 801.07
A16: 10 | B16: =паспорт!S20 -> 38.54 | C16: 404.34 | D16: 822.54 | E16: 1226.88
A17: 11 | B17: =паспорт!S21 -> 38.54 | C17: 512.45 | D17: 1061.47 | E17: 1573.92
A18: 12 | B18: =паспорт!S22 -> 38.47 | C18: 726.62 | D18: 1290.86 | E18: 2017.48
A19: 13 | B19: =паспорт!S23 -> 38.47 | C19: 942.57 | D19: 1624.08 | E19: 2566.65
A20: 14 | B20: =паспорт!S24 -> 38.47 | C20: 697.8 | D20: 1295.72 | E20: 1993.52
A21: 15 | B21: =паспорт!S25 -> 38.47 | C21: 463.31 | D21: 834.18 | E21: 1297.49
A22: 16 | B22: =паспорт!S26 -> 38.47 | C22: 279.41 | D22: 533.7 | E22: 813.11
A23: 17 | B23: =паспорт!S27 -> 38.47 | C23: 350.8 | D23: 681.19 | E23: 1031.99
A24: 18 | B24: =паспорт!S28 -> 38.47 | C24: 541.5 | D24: 943.78 | E24: 1485.28
A25: 19 | B25: =паспорт!S29 -> 38.47 | C25: 666.74 | D25: 1112.8 | E25: 1779.54
A26: 20 | B26: =паспорт!S30 -> 38.47 | C26: 693.43 | D26: 1115.16 | E26: 1808.59
A27: 21 | B27: =паспорт!S31 -> 38.47 | C27: 625.96 | D27: 995.17 | E27: 1621.13
A28: 22 | B28: =паспорт!S32 -> 38.47 | C28: 467.88 | D28: 630.69 | E28: 1098.57
A29: 23 | B29: =паспорт!S33 -> 38.47 | C29: 288.66 | D29: 505.96 | E29: 794.62
A30: 24 | B30: =паспорт!S34 -> 38.47 | C30: 241.52 | D30: 437.2 | E30: 678.72
A31: 25 | B31: =паспорт!S35 -> 38.46 | C31: 223.39 | D31: 400.35 | E31: 623.74
A32: 26 | B32: =паспорт!S36 -> 38.46 | C32: 182.93 | D32: 396.57 | E32: 579.5
A33: 27 | B33: =паспорт!S37 -> 38.46 | C33: 228.77 | D33: 396.62 | E33: 625.39
A34: 28 | B34: =паспорт!S38 -> 38.46 | C34: 168.8 | D34: 426.58 | E34: 595.38
A35: 29 | B35: =паспорт!S39 -> 38.46 | C35: 177.32 | D35: 352.96 | E35: 530.28
A36: 30 | B36: =паспорт!S40 -> 38.46 | C36: 139.16 | D36: 330.37 | E36: 469.53
A37: 31 | B37: =паспорт!S41 -> 38.44 | C37: 156.07 | D37: 332.87 | E37: 488.94
A38: Загальний обсяг газу, м3 | C38: =SUM(C7:C37) -> 11393.59 | D38: =SUM(D7:D37) -> 20717.04 | E38: =SUM(E7:E37) -> 32110.63
A39: Енергія, МДж | C39: =SUMPRODUCT(B7:B37,C7:C37) -> 438514.688 | D39: =SUMPRODUCT(B7:B37,D7:D37) -> 797377.1243 | E39: =SUMPRODUCT(B7:B37,E7:E37) -> 1235891.812
A40: Теплота згоряння (середньозважене значення за місяць), МДж/м³ | C40: =C39/C38 -> 38.48784167 | D40: =D39/D38 -> 38.48895037 | E40: =E39/E38 -> 38.48855698
A41: Теплота згоряння (середньозважене значення за місяць), ккал/м³ | C41: =C40*238.8459 -> 9192.663183 | D41: =D40*238.8459 -> 9192.92799 | E41: 9192.834031
A42: Теплота згоряння (середньозважене значення за місяць), кВт*год./м³ | C42: =C40/3.6 -> 10.69106713 | D42: =D40/3.6 -> 10.6913751 | E42: 10.69126583

Sheet додаток
A2: Додаток до Паспорту фізико-хімічних показників природного газу №135
A4: Область | B4: ГРС, прямий споживач | C4: Cередньозважене значення вищої теплоти згоряння
C5: МДж/м³ | D5: ккал/м³ | E5: кВт*год./м³
A6: Харківська область | B6: ГРС М-Комишувата | C6: =' розрахунок'!C40 -> 38.48784167 | D6: =' розрахунок'!C41 -> 9192.663183 | E6: =' розрахунок'!C42 -> 10.69106713
A7: Полтавська область | B7: ГРС Гряково | C7: =' розрахунок'!D40 -> 38.48895037 | D7: =' розрахунок'!D41 -> 9192.92799 | E7: =' розрахунок'!D42 -> 10.6913751
A8: Середньозважене значення вищої теплоти згоряння по маршруту № 135 | C8: =' розрахунок'!E40 -> 38.48855698 | D8: =' розрахунок'!E41 -> 9192.834031 | E8: =' розрахунок'!E42 -> 10.69126583
A12: Заступник начальника управління Диканського ЛВУМГ | D12: Герасименко І.М. | F12: =паспорт!V46 -> 01.06.17р.
A13: Підрозділу підприємства, якому підпорядкована лабораторія | D13: прізвище | E13: підпис | F13: дата
A14: Завідувач лабораторією | D14: Славінська А.В. | F14: =F12 -> 01.06.17р.
A15: Лабораторія, де здійснювалось вимірювання газу | D15: прізвище | E15: підпис | F15: дата
A16: Начальник служби ГВ та М | D16: Левадний С.А. | F16: =F12 -> 01.06.17р.
A17: Підрозділу, відповідального за облік газу за маршрутом | D17: прізвище | E17: підпис | F17: дата

Sheet variablesList (hidden)
A1: 3 | B1: x:\gaysin | C1: 10, 11, 24, 25, 127, 128, 132, 180, 207, 215 | D1: x:\
B2: x:\Illinci
B3: x:\Talne
